bitfinex-derivatives/quotes_ETHF0:USTF0_20250908
["timestamp","ask_amount","ask_price","bid_price","bid_amount"]
[1757356932030,0.7048,4326.9,4326.8,0.1999]
[1757356933129,0.7048,4326.9,4326.3,0.2951]
[1757356937233,0.5948953,4326.8,4326.3,0.2951]
[1757356937432,0.5162,4326.4,4326.3,0.6943]
[1757356939930,0.7169,4326.4,4326.3,0.6943]
[1757356940832,0.5162,4326.4,4326.3,0.6943]
[1757356941934,0.7169,4326.4,4326.3,0.6943]
[1757356942841,0.7169,4326.4,4325.7,0.48148142]
[1757356943138,0.7169,4325.8,4325.7,0.88068142]
[1757356943326,0.3145,4325.8,4325.7,1.11468142]
[1757356943532,0.3145,4326.0,4325.9,0.7004]
[1757356944238,0.5162,4326.0,4325.9,0.7004]
[1757356944829,0.3145,4326.4,4325.9,0.3992]
[1757356945034,0.4024,4326.5,4326.4,0.7004]
[1757356945436,0.7169,4326.5,4326.4,0.7004]
[1757356945635,0.5162,4326.5,4326.4,0.7004]
[1757356949742,0.7169,4326.5,4326.4,0.7004]
[1757356950742,0.8358,4326.5,4326.4,0.7004]
[1757356959847,0.7169,4326.5,4326.4,0.7004]
[1757356960041,0.5162,4326.9,4326.8,0.7004]
[1757356960347,0.5162,4326.9,4326.8,0.9344]
[1757356960550,0.5162,4326.9,4326.8,0.6332]
[1757356961048,0.5162,4326.9,4326.8,0.9344]
[1757356961448,0.8343,4327.5,4327.4,0.1957]
[1757356961647,1.42999115,4327.5,4327.4,0.1957]
[1757356961942,1.42999115,4327.5,4327.4,0.4969]
[1757356962142,0.8343,4327.5,4327.4,0.4969]
[1757356962648,0.8343,4327.5,4327.4,0.1957]
[1757356963643,0.8343,4327.5,4327.4,0.7004]
[1757356964152,0.8343,4327.5,4327.4,0.1957]
[1757356964543,0.8343,4327.5,4327.1,0.3012]
[1757356965249,0.8343,4327.5,4326.8,0.234]
[1757356965449,0.8343,4327.5,4327.4,0.1957]
[1757356966146,0.8343,4327.5,4327.2,0.3012]
[1757356966352,0.8343,4327.5,4326.9,0.2955]
[1757356966551,0.5368,4327.0,4326.9,0.4911]
[1757356966745,0.8611,4327.0,4326.9,0.4296]
[1757356968843,0.54,4327.0,4326.9,0.9338]
[1757356969050,0.3243,4327.0,4326.9,0.9338]
[1757356969552,0.54,4327.0,4326.9,0.9338]
[1757356970054,0.7384,4327.0,4326.9,0.9338]
[1757356970248,0.7384,4327.0,4326.9,0.4043]
[1757356970554,0.8611,4327.0,4326.9,0.6383]
[1757356970749,0.8611,4327.0,4326.9,0.4296]
[1757356972862,0.8611,4327.0,4326.9,0.1956]
[1757356973162,1.09221,4327.0,4326.7,0.234]
[1757356973761,0.8611,4327.0,4326.7,0.234]
[1757356976662,0.8611,4327.0,4326.9,0.1956]
[1757356976863,0.1189,4328.0,4327.9,0.1956]
[1757356977162,0.4241,4328.0,4327.9,0.9338]
[1757356977559,0.6225,4328.0,4327.9,0.9338]
[1757356979565,0.7452,4328.0,4327.5,0.4201]
[1757356979766,0.4141,4327.7,4327.6,0.3966]
[1757356979968,0.7384,4327.7,4327.6,0.9008]
[1757356981063,0.7384,4327.7,4327.6,0.6998]
[1757356981263,0.7384,4327.7,4327.6,0.9338]
[1757356981668,0.7384,4327.7,4327.6,1.21669906]
[1757356982463,0.7384,4327.7,4327.6,0.51689906]
[1757356982975,0.7384,4327.7,4327.6,0.28289906]
[1757356985366,4.7384,4327.7,4327.6,0.28289906]
[1757356985567,4.96947001,4327.7,4326.8,0.095]
[1757356985763,0.4141,4326.9,4326.8,0.5861]
[1757356986069,0.4141,4326.9,4326.8,0.7948]
[1757356986776,0.7073,4326.9,4326.8,0.7948]
[1757356987268,0.4141,4326.9,4326.8,0.7948]
[1757356989469,0.7073,4326.9,4326.8,0.4911]
[1757356989677,0.7073,4326.9,4326.8,0.7251]
[1757356990271,0.4141,4326.9,4326.8,0.9338]
[1757356990479,0.2932,4327.9,4326.9,0.2955]
[1757356990686,0.59509757,4327.8,4327.1,0.2955]
[1757356990885,1.30239757,4327.7,4327.6,0.4911]
[1757356991980,1.00919757,4327.7,4327.6,0.6998]
[1757356992383,1.30239757,4327.7,4327.6,0.4911]
[1757356992586,1.00919757,4327.7,4327.6,0.6998]
[1757356992983,1.30239757,4327.7,4327.6,0.6998]
[1757356993181,0.7073,4327.7,4327.6,0.6998]
[1757356995291,0.7073,4327.7,4327.6,0.4911]
[1757356997884,0.2931,4328.2,4327.6,0.6998]
[1757356998185,1.31463214,4328.1,4328.0,0.8469]
[1757356998386,1.02153214,4328.1,4328.0,0.8469]
[1757356998591,0.4265,4328.1,4328.0,0.8469]
[1757357000878,0.17,4328.9,4328.1,0.3212]
[1757357001087,1.31448696,4328.8,4328.1,0.3212]
[1757357001291,0.4265,4328.2,4328.1,0.7286]
[1757357003684,0.7196,4328.2,4327.6,0.3212]
[1757357003882,0.4265,4327.7,4327.6,0.21]
[1757357004082,0.7196,4327.7,4327.6,0.5312]
[1757357004285,0.4265,4327.7,4327.6,0.7286]
[1757357006977,0.17,4328.9,4327.7,0.3212]
[1757357006978,0.2931,4328.8,4327.7,0.3212]
[1757357007285,0.2931,4328.6,4327.7,0.3212]
[1757357007484,1.02143945,4328.5,4328.4,0.21]
[1757357007788,1.31453945,4328.5,4328.4,0.5312]
[1757357007989,0.2104,4328.5,4328.4,0.7286]
[1757357011088,0.17,4328.9,4328.8,0.4074]
[1757357011288,0.76484009,4328.9,4328.8,0.7286]
[1757357011485,0.17,4328.9,4328.8,0.7286]
[1757357013391,0.3804,4328.9,4328.8,0.7286]
[1757357013592,0.5965,4328.9,4328.8,0.7286]
[1757357014095,0.8896,4328.9,4328.8,0.7286]
[1757357014495,0.5965,4328.9,4328.8,0.7286]
[1757357014892,0.3804,4328.9,4328.8,0.7286]
[1757357016596,0.97463259,4328.9,4328.8,0.7286]
[1757357016990,1.48383259,4328.9,4328.8,0.7286]
[1757357017294,0.7196,4328.7,4328.6,0.3212]
[1757357017494,1.31383259,4328.7,4328.6,0.3212]
[1757357017689,1.31383259,4328.7,4328.6,0.5312]
[1757357017889,0.59423259,4328.7,4328.6,0.7286]
[1757357018089,0.17,4328.9,4328.6,0.7286]
[1757357018295,0.17,4328.9,4328.7,0.3212]
[1757357018496,0.17,4328.9,4328.8,0.7286]
[1757357018690,0.76416403,4328.9,4328.8,0.7286]
[1757357018896,0.17,4328.9,4328.8,0.7286]
[1757357020892,0.5965,4328.9,4328.8,0.7286]
[1757357021198,0.17,4328.9,4328.8,0.7286]
[1757357023891,1.24589383,4330.0,4329.5,0.1183]
[1757357024093,0.2104,4330.8,4330.7,0.4074]
[1757357024295,0.80427168,4330.8,4330.7,0.7286]
[1757357026402,0.59387168,4330.8,4330.7,0.7286]
[1757357026603,0.2931,4331.3,4330.7,0.4074]
[1757357026794,0.4109,4331.1,4331.0,0.8137]
[1757357026996,1.00406583,4331.1,4331.0,0.8137]
[1757357027901,1.29616583,4331.1,4331.0,0.8137]
[1757357029099,0.703,4331.1,4331.0,0.8137]
[1757357030206,0.703,4331.1,4330.6,0.2973]
[1757357030601,0.703,4331.1,4330.0,0.1183]
[1757357030602,0.703,4331.1,4330.1,0.3623]
[1757357032009,0.59235419,4331.0,4330.1,0.2973]
[1757357032208,0.4109,4330.2,4330.1,0.6885]
[1757357032504,0.703,4330.2,4329.6,0.2973]
[1757357034512,0.4109,4330.2,4330.1,0.4928]
[1757357035307,0.703,4330.2,4330.1,0.4928]
[1757357035909,0.2921,4330.1,4329.6,0.2973]
[1757357036116,0.703,4329.7,4329.6,0.4928]
[1757357036405,0.4109,4329.7,4329.6,0.6885]
[1757357036610,0.2142,4329.7,4329.6,0.6885]
[1757357037012,0.703,4330.1,4330.0,0.3207]
[1757357037207,0.4109,4330.1,4330.0,0.618]
[1757357037409,0.4109,4330.1,4330.0,0.8137]
[1757357039613,0.703,4330.1,4330.0,0.8137]
[1757357039816,0.703,4330.1,4330.0,0.618]
[1757357040112,0.4109,4330.1,4330.0,0.618]
[1757357040315,0.4109,4330.1,4330.0,0.8137]
[1757357043617,0.703,4330.1,4329.5,0.1183]
[1757357043817,0.703,4330.1,4329.6,0.2973]
[1757357044009,0.2921,4330.0,4329.6,0.2973]
[1757357044215,0.4109,4329.7,4329.6,0.6885]
[1757357045220,0.2921,4330.4,4329.7,0.2973]
[1757357045413,0.80804693,4330.3,4330.2,0.3912]
[1757357045720,0.80804693,4330.3,4330.2,0.6885]
[1757357046416,1.00474693,4330.3,4330.2,0.6885]
[1757357046722,1.29684693,4330.3,4330.2,0.6885]
[1757357047118,1.00474693,4330.3,4330.2,0.6885]
[1757357047920,0.80804693,4330.3,4330.2,0.6885]
[1757357049321,0.59384693,4330.3,4330.2,0.6885]
[1757357049523,0.2921,4331.1,4330.2,0.6885]
[1757357049722,0.2142,4330.4,4330.3,0.2973]
[1757357049918,0.2142,4330.4,4330.3,0.6885]
[1757357049919,0.4109,4330.4,4330.3,0.6885]
[1757357050421,1.00521426,4330.4,4330.3,0.6885]
[1757357051824,1.29731426,4330.4,4330.3,0.2973]
[1757357052723,0.59431426,4330.4,4330.3,0.6885]
[1757357052917,0.59431426,4331.0,4330.3,0.6885]
[1757357053113,0.82522426,4331.0,4330.4,0.2973]
[1757357053319,0.2142,4330.6,4330.5,0.5164]
[1757357053523,0.80851426,4330.6,4330.5,0.8137]
[1757357054120,1.00521426,4330.6,4330.5,0.8137]
[1757357056825,1.29741426,4330.6,4330.5,0.2973]
[1757357057025,0.6917,4330.2,4330.1,0.2986]
[1757357057219,1.28601426,4330.2,4330.1,0.2986]
[1757357057729,1.28664251,4330.2,4330.1,0.2986]
[1757357058328,1.28664251,4330.2,4329.6,0.2986]
[1757357058532,0.1949,4329.7,4329.6,0.7035]
[1757357058721,0.78984251,4329.7,4329.6,0.7035]
[1757357060225,0.99444251,4329.7,4329.6,0.7035]
[1757357060424,1.28664251,4329.7,4329.6,0.7035]
[1757357060631,0.99444251,4329.7,4329.6,0.7035]
[1757357061023,0.78984251,4329.7,4329.6,0.7035]
[1757357064625,0.59494251,4329.7,4329.6,0.7035]
[1757357064825,1.24589383,4330.3,4329.7,0.2986]
[1757357065025,1.28709606,4330.2,4330.1,0.1994]
[1757357065220,1.28709606,4330.2,4330.1,0.498]
[1757357066731,0.59539606,4330.2,4330.1,0.7035]
[1757357067035,0.59539606,4330.2,4330.1,5.16844]
[1757357067334,0.2922,4331.3,4330.2,0.2986]
[1757357067532,0.59533233,4331.2,4330.3,0.2986]
[1757357067732,0.59533233,4331.1,4330.3,0.2986]
[1757357067932,1.28703233,4331.0,4330.9,0.498]
[1757357070434,1.28703233,4331.0,4330.9,0.2986]
[1757357070635,1.28703233,4331.0,4330.6,0.2986]
[1757357070838,0.6917,4330.7,4330.6,0.498]
[1757357071043,1.28703233,4330.7,4330.6,0.498]
[1757357074637,0.99483233,4330.7,4330.6,0.7035]
[1757357075531,1.28703233,4330.7,4330.6,0.7035]
[1757357075732,1.28703233,4330.7,4330.6,0.498]
[1757357076131,1.28703233,4330.7,4330.6,0.2986]
[1757357076534,1.28703233,4330.7,4330.6,0.498]
[1757357077243,1.28703233,4330.7,4330.6,0.2986]
[1757357078643,1.28703233,4330.7,4330.6,0.498]
[1757357078841,1.28703233,4330.7,4330.6,0.7035]
[1757357078842,0.79023233,4330.7,4330.6,0.7035]
[1757357079134,0.99483233,4330.7,4330.6,0.7035]
[1757357080535,1.28723233,4330.7,4330.6,0.7035]
[1757357081642,1.28723233,4330.7,4330.1,0.2986]
[1757357081844,0.1949,4330.2,4330.1,0.7035]
[1757357082341,0.79023233,4330.2,4330.1,0.7035]
[1757357083543,0.2924,4331.0,4330.2,0.2986]
[1757357083747,0.99447623,4330.9,4330.8,0.1994]
[1757357083946,1.28687623,4330.9,4330.8,0.498]
[1757357086140,1.28687623,4330.9,4330.8,0.2986]
[1757357088850,1.28687623,4330.9,4330.1,0.3184]
[1757357089045,0.6897,4330.2,4330.1,0.5311]
[1757357089252,1.28467623,4330.2,4330.1,0.5311]
[1757357091152,1.28467623,4330.2,4330.1,0.3184]
[1757357092741,1.28467623,4330.2,4330.1,0.5311]
[1757357096856,1.28467623,4330.2,4329.6,0.3184]
[1757357097158,0.6897,4329.7,4329.6,0.3184]
[1757357097355,1.28467623,4329.7,4329.6,0.3184]
[1757357099958,1.28467623,4329.7,4329.6,0.5311]
[1757357102253,1.28467623,4329.7,4329.1,0.3184]
[1757357102457,0.2016,4329.1,4329.0,0.549]
[1757357103060,0.2929,4329.5,4329.0,0.549]
[1757357103254,0.79627633,4329.4,4329.3,0.4238]
[1757357103563,0.79627633,4329.4,4329.3,0.7422]
[1757357104358,0.59467633,4329.4,4329.3,0.7422]
[1757357104664,0.2929,4330.2,4329.3,0.7422]
[1757357104958,0.99120397,4330.1,4330.0,0.8663]
[1757357105159,1.28410397,4330.1,4330.0,0.8663]
[1757357106558,1.93559383,4330.1,4330.0,0.8663]
[1757357106870,0.99120397,4330.1,4330.0,0.8663]
[1757357107665,1.28410397,4330.1,4330.0,0.8663]
[1757357107963,1.28410397,4330.1,4329.5,0.1241]
[1757357108162,0.3968,4329.7,4329.6,0.5311]
[1757357108361,0.6897,4329.7,4329.6,0.5311]
[1757357108562,1.28410397,4329.7,4329.6,0.5311]
[1757357109261,1.28410397,4329.7,4329.6,0.7422]
[1757357109661,0.99120397,4329.7,4329.6,0.7422]
[1757357110365,1.28410397,4329.7,4329.6,0.7422]
[1757357111568,1.28410397,4329.7,4329.6,0.3184]
[1757357111965,1.28410397,4329.7,4329.1,0.3184]
[1757357112266,0.6897,4329.2,4329.1,0.5311]
[1757357112470,0.79600397,4329.2,4329.1,0.7422]
[1757357112867,0.59440397,4329.2,4329.1,4.97318999]
[1757357113062,0.59450697,4329.8,4329.7,0.4238]
[1757357113460,0.59450697,4329.8,4329.7,4.4238]
[1757357113767,0.59450697,4329.8,4329.7,4.7422]
[1757357114368,0.2929,4330.9,4329.7,4.7422]
[1757357114369,0.2016,4330.6,4330.5,0.8663]
[1757357114564,0.79611442,4330.6,4330.5,0.8663]
[1757357115761,0.59451442,4330.6,4330.5,0.8663]
[1757357119659,0.59451442,4330.6,4330.5,5.09722]
[1757357119860,0.2926,4331.6,4331.5,0.1268]
[1757357120064,1.29267793,4331.6,4331.5,0.6276]
[1757357120464,1.29267793,4331.6,4331.5,0.8316]
[1757357120664,1.00007793,4331.6,4331.5,0.8316]
[1757357121471,1.29267793,4331.6,4331.5,0.5008]
[1757357122175,1.00007793,4331.6,4331.5,0.8316]
[1757357125370,1.29267793,4331.6,4331.5,0.8316]
[1757357125574,1.29267793,4331.6,4331.5,0.6276]
[1757357128477,1.29267793,4331.6,4331.5,0.5008]
[1757357128978,1.00007793,4331.6,4331.0,0.4248]
[1757357129278,0.6981,4331.1,4331.0,0.6276]
[1757357129479,1.29267793,4331.1,4331.0,0.6276]
[1757357129677,1.00007793,4331.1,4331.0,0.8316]
[1757357129875,0.4055,4331.1,4331.0,0.8316]
[1757357130276,0.2021,4331.1,4331.0,0.8316]
[1757357131478,0.2926,4331.9,4331.1,0.298]
[1757357131784,0.88574468,4331.8,4331.1,0.298]
[1757357131985,0.59314468,4331.7,4331.1,0.298]
[1757357132281,1.29124468,4331.6,4331.5,0.5008]
[1757357132478,0.59314468,4331.6,4331.5,0.8316]
[1757357134078,0.79524468,4331.6,4331.5,0.8316]
[1757357136586,0.2021,4331.6,4331.5,0.8316]
[1757357136895,0.2926,4332.4,4331.6,0.298]
[1757357137199,1.29131238,4332.3,4332.2,0.5008]
[1757357138999,1.29131238,4332.3,4332.2,0.298]
[1757357139499,1.29131238,4332.3,4332.1,0.298]
[1757357139700,1.29201238,4332.2,4332.1,0.298]
[1757357139901,1.29201238,4332.2,4331.6,0.298]
[1757357140095,0.4055,4331.7,4331.6,0.7048]
[1757357140300,0.6988,4331.7,4331.6,0.298]
[1757357140500,1.29201238,4331.7,4331.1,0.298]
[1757357140700,0.2021,4331.2,4331.1,0.7048]
[1757357142200,0.2933,4331.8,4331.1,0.4068]
[1757357142401,0.2933,4331.8,4331.0,0.1268]
[1757357142402,0.99967318,4331.7,4331.6,0.7048]
[1757357145102,0.59417318,4331.7,4331.6,0.7048]
[1757357146204,0.79627318,4331.7,4331.6,0.7048]
[1757357146606,0.59417318,4331.7,4331.6,0.7048]
[1757357148699,0.80947318,4331.7,4331.6,0.7048]
[1757357150303,2.05536701,4331.7,4331.6,0.7048]
[1757357151107,0.80947318,4331.7,4331.6,0.7048]
[1757357151311,2.05536701,4331.7,4331.6,0.7048]
[1757357151811,2.26346701,4331.7,4331.6,0.5008]
[1757357152007,2.55646701,4331.7,4331.1,0.2999]
[1757357152208,0.4234,4331.2,4331.1,0.7111]
[1757357152509,1.01757318,4331.2,4331.1,0.7111]
[1757357153912,0.80947318,4331.2,4331.1,0.7111]
[1757357154208,0.59417318,4331.2,4331.1,0.7111]
[1757357154409,1.24589383,4331.6,4331.2,0.2999]
[1757357154609,1.66929383,4331.6,4331.5,0.6224]
[1757357154809,2.26477448,4331.6,4331.5,0.6224]
[1757357156111,2.55777448,4331.6,4331.5,0.6224]
[1757357156612,1.31188065,4331.6,4331.5,0.6224]
[1757357157910,1.01888065,4331.6,4331.5,0.8292]
[1757357158210,1.31188065,4331.6,4331.5,0.8292]
[1757357161415,1.01888065,4331.6,4331.5,0.8292]
[1757357162817,1.31188065,4331.6,4331.5,0.8292]
[1757357163013,1.01888065,4331.6,4331.5,0.8292]
[1757357163313,0.59548065,4331.6,4331.5,0.8292]
[1757357169019,0.81078065,4331.6,4331.5,0.8292]
[1757357169221,1.31188065,4331.6,4331.5,0.8292]
[1757357170119,1.31188065,4331.6,4331.1,0.2999]
[1757357170419,0.4234,4331.2,4331.1,0.7111]
[1757357170818,1.01888065,4331.2,4331.1,0.7111]
[1757357171612,0.81078065,4331.2,4331.1,0.7111]
[1757357172417,0.59548065,4331.2,4331.1,4.94198999]
[1757357172614,1.24589383,4332.0,4331.7,0.4112]
[1757357172821,0.59564741,4331.9,4331.7,0.4112]
[1757357173115,0.27114741,4331.8,4331.7,0.4112]
[1757357173319,1.56459383,4332.8,4331.7,0.7914341]
[1757357173618,0.7421,4332.8,4332.7,0.7111]
[1757357175021,0.7421,4332.8,4332.7,0.5043]
[1757357176216,0.7421,4332.8,4332.7,0.7111]
[1757357178318,1.24589383,4333.3,4333.0,0.1246]
[1757357178510,0.3188,4333.3,4333.2,0.3125]
[1757357178715,0.7301,4333.3,4333.2,0.7187]
[1757357179521,0.7301,4333.3,4332.9,0.3125]
[1757357179718,0.1189,4333.0,4332.6,0.3125]
[1757357179919,0.7301,4332.7,4332.6,0.5188]
[1757357181716,0.7301,4332.7,4332.0,0.3511]
[1757357181717,0.7301,4332.3,4332.2,0.5188]
[1757357181917,0.7301,4332.3,4331.9,0.5455]
[1757357182116,0.7301,4332.1,4332.0,0.5188]
[1757357182321,0.7301,4332.1,4332.0,0.7187]
[1757357183319,0.3188,4332.4,4332.1,0.3125]
[1757357183524,0.3188,4332.8,4332.3,0.7187]
[1757357183726,0.3188,4332.9,4332.4,0.3125]
[1757357183919,0.5302,4333.0,4332.9,0.2063]
[1757357184121,0.5302,4333.0,4332.9,0.5188]
[1757357184622,0.5302,4333.0,4332.5,0.1246]
[1757357184623,0.849,4333.0,4332.5,0.1246]
[1757357184819,0.849,4333.0,4332.6,0.3125]
[1757357185025,0.61100204,4332.9,4332.5,0.1246]
[1757357185219,0.3188,4332.9,4332.8,0.2063]
[1757357185418,1.34109728,4332.9,4332.8,0.5188]
[1757357185625,1.34109728,4332.9,4332.8,0.7187]
[1757357187524,0.80899728,4332.9,4332.8,0.7187]
[1757357187724,0.61099728,4332.9,4332.8,0.7187]
[1757357188126,0.80899728,4332.9,4332.8,0.7187]
[1757357189331,1.34109728,4332.9,4332.8,0.5188]
[1757357189527,1.34109728,4332.9,4332.8,0.7187]
[1757357190324,0.61099728,4332.9,4332.8,0.7187]
[1757357193229,1.97599383,4333.9,4333.8,0.7187]
[1757357193432,1.34108325,4333.9,4333.8,0.7187]
[1757357194034,1.34108325,4333.9,4333.8,0.2063]
[1757357195932,1.34108325,4333.9,4333.8,0.7187]
[1757357198931,1.34108325,4333.9,4333.8,0.5188]
[1757357199137,1.34108325,4333.9,4333.2,0.3125]
[1757357199438,0.7301,4333.7,4333.6,0.5188]
[1757357199629,0.7301,4333.7,4333.6,0.7187]
[1757357199630,1.34108325,4333.7,4333.6,0.7187]
[1757357200330,1.56469383,4334.5,4333.7,0.0692]
[1757357200536,0.6357,4335.0,4334.9,0.2214]
[1757357200737,0.849,4335.0,4334.9,0.2214]
[1757357202330,0.3169,4334.5,4334.4,0.4544]
[1757357202637,0.6357,4334.5,4334.4,0.4544]
[1757357202829,0.1189,4334.5,4334.4,4.5236]
[1757357203136,0.3188,4334.7,4334.6,0.2906]
[1757357203938,0.1189,4335.0,4334.9,0.2214]
[1757357204128,0.4377,4335.0,4334.9,0.2214]
[1757357204328,0.6357,4335.0,4334.9,0.2214]
[1757357205332,0.4377,4335.0,4334.9,0.2906]
[1757357205637,0.3188,4335.0,4334.9,0.2906]
[1757357206136,0.4377,4335.0,4334.9,0.2906]
[1757357206337,0.6357,4335.0,4334.9,0.2214]
[1757357206837,0.6357,4335.0,4334.9,0.2814]
[1757357210038,0.4377,4335.0,4334.9,0.35]
[1757357210831,0.6435,4335.0,4334.9,0.2814]
[1757357211035,0.8476,4335.0,4334.9,0.1707]
[1757357212146,0.8428,4334.5,4334.4,0.1097]
[1757357212434,0.8428,4334.5,4334.4,0.035]
[1757357212737,0.8428,4334.5,4334.4,0.1447]
[1757357212944,0.8428,4334.0,4333.9,0.40804795]
[1757357213336,0.8428,4334.0,4333.9,0.233]
[1757357213536,0.5387,4334.0,4333.1,33.3146]
[1757357213735,0.714,4333.9,4333.8,0.1097]
[1757357214138,0.1288,4334.0,4333.8,0.1097]
[1757357214139,0.1288,4334.0,4333.9,0.288]
[1757357214342,0.3041,4334.4,4333.9,0.288]
[1757357214540,0.5099,4334.4,4334.3,0.2194]
[1757357214738,0.714,4334.4,4334.0,0.233]
[1757357215236,0.8428,4334.0,4333.9,0.1097]
[1757357215433,0.8428,4334.0,4333.9,0.4524]
[1757357216543,0.4329,4334.0,4333.9,0.521]
[1757357216844,0.8428,4334.0,4333.9,4.4524]
[1757357217835,0.1288,4334.0,4333.9,4.521]
[1757357218034,0.3041,4334.4,4334.3,0.2194]
[1757357218244,0.3041,4334.4,4334.3,0.288]
[1757357219140,0.4329,4334.5,4334.3,0.2194]
[1757357219344,0.4329,4334.5,4334.4,0.288]
[1757357219542,0.8428,4334.5,4334.4,0.2194]
[1757357219845,0.8428,4334.5,4334.4,0.1097]
[1757357220346,0.4329,4334.5,4334.4,0.2194]
[1757357220946,0.6387,4334.5,4334.4,0.2194]
[1757357221247,0.8428,4334.5,4334.4,0.2194]
[1757357222448,0.8428,4334.5,4334.4,0.233]
[1757357223351,0.8428,4334.5,4333.7,0.0686]
[1757357223543,0.6387,4334.0,4333.9,0.2194]
[1757357223744,0.6387,4334.0,4333.9,0.4524]
[1757357224451,0.4329,4334.0,4333.9,0.521]
[1757357225347,0.3041,4334.0,4333.9,0.521]
[1757357225848,0.3041,4334.4,4333.9,0.521]
[1757357226346,0.1288,4334.5,4333.9,0.4524]
[1757357226847,0.3041,4334.4,4333.9,0.521]
[1757357227246,0.1288,4334.5,4333.9,0.521]
[1757357227744,0.4329,4334.0,4333.9,0.521]
[1757357228742,0.3041,4334.0,4333.9,0.521]
[1757357229350,0.3041,4334.0,4333.9,4.521]
[1757357229546,0.3041,4334.4,4333.9,4.521]
[1757357229749,0.2058,4334.4,4334.3,0.2194]
[1757357230048,0.5099,4334.4,4334.3,0.2194]
[1757357230951,0.5387,4334.0,4333.9,0.3427]
[1757357231152,0.8428,4334.0,4333.9,0.4524]
[1757357235557,0.8428,4334.0,4333.9,0.3427]
[1757357235749,0.8428,4334.0,4333.9,0.233]
[1757357236357,0.8428,4334.0,4333.9,0.3427]
[1757357237357,0.8613,4334.0,4333.9,0.233]
[1757357240654,0.3226,4333.9,4333.7,33.23]
[1757357240848,0.7444,4333.9,4333.8,0.233]
[1757357242052,0.7444,4333.9,4333.8,0.344]
[1757357242460,0.7444,4333.9,4333.7,33.23]
[1757357242761,0.3226,4333.8,4333.7,33.23]
[1757357242959,0.3226,4333.8,4333.7,33.463]
[1757357246556,0.3226,4333.8,4333.7,33.23]
[1757357246762,0.3226,4333.8,4333.7,33.463]
[1757357246962,0.3226,4333.8,4333.7,33.1383]
[1757357248761,0.3226,4333.8,4333.7,32.9053]
[1757357248963,0.3226,4333.8,4333.7,33.1383]
[1757357250662,0.3226,4333.8,4333.7,33.4458]
[1757357250971,0.535,4334.0,4333.9,0.725]
[1757357251268,0.3226,4334.0,4333.9,0.958]
[1757357251465,0.1288,4334.5,4333.9,0.958]
[1757357251762,1.03106717,4334.4,4334.3,0.725]
[1757357251961,0.4218,4334.4,4334.3,0.958]
[1757357252463,0.1189,4335.0,4334.3,0.6505]
[1757357252769,0.8633,4335.0,4334.9,0.4175]
[1757357252972,1.47253609,4335.0,4334.9,0.6505]
[1757357253765,1.47253609,4335.0,4334.9,0.958]
[1757357253960,0.5407,4335.5,4335.4,0.4175]
[1757357254162,1.14987203,4335.5,4335.4,0.958]
[1757357254364,0.5407,4335.5,4335.4,0.958]
[1757357254566,0.8633,4335.5,4335.4,0.958]
[1757357255166,0.8633,4335.5,4335.4,0.6505]
[1757357255567,0.8633,4335.5,4335.4,0.4405]
[1757357255866,0.8633,4335.5,4335.1,0.18525449]
[1757357256072,0.3226,4334.9,4334.1,0.3075]
[1757357256372,0.3226,4334.9,4334.2,0.233]
[1757357256565,0.3226,4334.9,4334.3,0.3075]
[1757357256765,0.3226,4334.9,4334.3,0.5405]
[1757357257071,0.1225,4335.0,4334.3,0.5405]
[1757357257273,0.7444,4334.9,4334.8,0.2075]
[1757357257461,0.1225,4335.0,4334.1,0.17970939]
[1757357257462,0.1225,4334.5,4334.4,0.2075]
[1757357257668,0.5443,4335.0,4334.9,0.4175]
[1757357257971,0.1189,4335.5,4334.9,0.958]
[1757357258170,0.3226,4335.4,4335.3,0.3075]
[1757357258368,0.3226,4335.4,4335.3,0.958]
[1757357258568,0.535,4335.4,4335.3,0.958]
[1757357259974,0.3226,4335.4,4335.3,0.958]
[1757357260275,0.535,4335.4,4335.3,0.958]
[1757357260577,0.7444,4335.4,4335.3,0.6505]
[1757357262177,0.7444,4335.4,4335.3,0.958]
[1757357263882,0.7444,4335.4,4335.3,0.6505]
[1757357264085,0.7444,4335.4,4335.3,0.958]
[1757357264382,0.535,4335.4,4335.3,0.958]
[1757357264883,0.7444,4335.4,4335.3,0.958]
[1757357265783,0.1225,4336.0,4335.4,0.3075]
[1757357265980,0.8669,4336.0,4335.9,0.2075]
[1757357266180,0.5274,4335.5,4335.4,0.5113]
[1757357266378,0.8429,4335.5,4335.4,0.5113]
[1757357266580,0.8429,4335.5,4335.4,0.7237]
[1757357267282,0.3155,4335.5,4335.4,0.7237]
[1757357268288,0.5122,4335.5,4335.4,0.7237]
[1757357268780,0.3155,4335.9,4335.4,0.4162]
[1757357268980,0.438,4336.0,4335.9,0.709]
[1757357269182,0.1225,4336.5,4335.9,0.4162]
[1757357269374,0.8422,4336.5,4336.4,0.2038]
[1757357269579,1.44728651,4336.5,4336.4,0.2038]
[1757357271085,1.44728651,4336.5,4336.0,0.153]
[1757357271385,0.8422,4336.5,4336.0,0.153]
[1757357271979,0.5267,4336.5,4335.3,33.5188]
[1757357272183,0.1967,4335.4,4335.3,33.5188]
[1757357272383,0.3155,4335.4,4335.3,33.7518]
[1757357272582,0.7197,4335.9,4335.8,0.4966]
[1757357272782,0.7197,4335.9,4335.8,0.2038]
[1757357272987,0.523,4335.5,4335.4,0.709]
[1757357273185,0.7197,4335.5,4335.4,0.942]
[1757357273381,0.3155,4335.8,4335.4,0.942]
[1757357273589,0.5122,4335.8,4335.7,0.709]